[Event "*** SCC Grand Prix: Titled Tuesday Blitz"]
[Site "Chess.com"]
[Date "2020.08.11"]
[Round "7"]
[White "guillembaches"]
[Black "Schandenfreude"]
[Result "0-1"]
[WhiteElo "2397"]
[BlackElo "2547"]
[TimeControl "180+1"]
[EndTime "11:18:39 PDT"]
[Termination "Schandenfreude won on time"]

1. e4 {[%clk 0:03:00.9]} 1... e6 {[%clk 0:02:59.2]} 2. Nf3 {[%clk 0:03:01.1]}
2... d5 {[%clk 0:02:58.5]} 3. exd5 {[%clk 0:03:02]} 3... exd5 {[%clk 0:02:58.7]}
4. d4 {[%clk 0:03:02.5]} 4... Nf6 {[%clk 0:02:57.4]} 5. Bd3 {[%clk 0:03:02.4]}
5... Be7 {[%clk 0:02:47.2]} 6. O-O {[%clk 0:03:02.5]} 6... Bg4 {[%clk
0:02:46.1]} 7. Bg5 {[%clk 0:03:02.5]} 7... O-O {[%clk 0:02:45.4]} 8. Nbd2 {[%clk
0:03:02.8]} 8... c6 {[%clk 0:02:45.3]} 9. c3 {[%clk 0:03:03.1]} 9... Nbd7 {[%clk
0:02:42.5]} 10. Qc2 {[%clk 0:03:02.9]} 10... Bh5 {[%clk 0:02:42.4]} 11. Ne5
{[%clk 0:02:57.4]} 11... Bg6 {[%clk 0:02:42.4]} 12. Nxg6 {[%clk 0:02:53.1]}
12... hxg6 {[%clk 0:02:42.3]} 13. Rae1 {[%clk 0:02:52.8]} 13... Re8 {[%clk
0:02:40.3]} 14. Nf3 {[%clk 0:02:43.3]} 14... Bd6 {[%clk 0:02:38.9]} 15. g3
{[%clk 0:02:35.5]} 15... Qc7 {[%clk 0:02:33.2]} 16. Kg2 {[%clk 0:02:34.1]} 16...
Rxe1 {[%clk 0:02:32]} 17. Rxe1 {[%clk 0:02:33.9]} 17... Re8 {[%clk 0:02:31.1]}
18. Rxe8+ {[%clk 0:02:32]} 18... Nxe8 {[%clk 0:02:30.8]} 19. Qe2 {[%clk
0:02:31.4]} 19... Nef6 {[%clk 0:02:26.5]} 20. b3 {[%clk 0:02:29.2]} 20... Kf8
{[%clk 0:02:20.6]} 21. c4 {[%clk 0:02:28.1]} 21... Be7 {[%clk 0:02:05.2]} 22.
Bf4 {[%clk 0:02:21]} 22... Qd8 {[%clk 0:02:03.1]} 23. c5 {[%clk 0:02:11.3]}
23... Kg8 {[%clk 0:01:56.5]} 24. b4 {[%clk 0:02:09.4]} 24... a6 {[%clk
0:01:56.2]} 25. a4 {[%clk 0:02:06.3]} 25... Nf8 {[%clk 0:01:54.8]} 26. b5 {[%clk
0:02:01.6]} 26... axb5 {[%clk 0:01:55.2]} 27. axb5 {[%clk 0:02:02.5]} 27... Ne6
{[%clk 0:01:55.5]} 28. Be5 {[%clk 0:02:02]} 28... Ng4 {[%clk 0:01:46.6]} 29. b6
{[%clk 0:01:28.9]} 29... Nxe5 {[%clk 0:01:29.6]} 30. Qxe5 {[%clk 0:01:28.7]}
30... Bf6 {[%clk 0:01:26.7]} 31. Qe3 {[%clk 0:01:25.4]} 31... Qd7 {[%clk
0:01:18.1]} 32. h4 {[%clk 0:00:56.4]} 32... Kf8 {[%clk 0:01:18.1]} 33. Kf1
{[%clk 0:00:51.8]} 33... Ke7 {[%clk 0:01:12.1]} 34. Ke2 {[%clk 0:00:46.8]} 34...
Qc8 {[%clk 0:01:12.1]} 35. Ne5 {[%clk 0:00:43.7]} 35... Qa8 {[%clk 0:01:05.2]}
36. Nf3 {[%clk 0:00:17.3]} 36... Qa2+ {[%clk 0:01:02.3]} 37. Kf1 {[%clk
0:00:17.4]} 37... Qa1+ {[%clk 0:01:01.7]} 38. Kg2 {[%clk 0:00:17.4]} 38... Kd7
{[%clk 0:00:53.1]} 39. Ne5+ {[%clk 0:00:11.7]} 39... Bxe5 {[%clk 0:00:50.9]} 40.
Qxe5 {[%clk 0:00:11.9]} 40... Qxd4 {[%clk 0:00:45.7]} 41. Qd6+ {[%clk
0:00:12.1]} 41... Ke8 {[%clk 0:00:45.6]} 42. Bxg6 {[%clk 0:00:11.9]} 42... Qf6
{[%clk 0:00:33.1]} 43. Qb8+ {[%clk 0:00:10.3]} 43... Nd8 {[%clk 0:00:32]} 44.
Bd3 {[%clk 0:00:08.7]} 44... Qe7 {[%clk 0:00:32]} 45. Qf4 {[%clk 0:00:08.6]}
45... Qxc5 {[%clk 0:00:31.4]} 46. Qc7 {[%clk 0:00:08.4]} 46... Qe7 {[%clk
0:00:30.3]} 47. Bf5 {[%clk 0:00:06.7]} 47... d4 {[%clk 0:00:26.7]} 48. g4 {[%clk
0:00:05]} 48... g6 {[%clk 0:00:25]} 49. Bd3 {[%clk 0:00:04.7]} 49... c5 {[%clk
0:00:24.9]} 50. h5 {[%clk 0:00:04]} 50... gxh5 {[%clk 0:00:25]} 51. gxh5 {[%clk
0:00:04.9]} 51... Kf8 {[%clk 0:00:22.9]} 52. h6 {[%clk 0:00:04]} 52... Ne6
{[%clk 0:00:22.5]} 53. Qb8+ {[%clk 0:00:03.2]} 53... Qd8 {[%clk 0:00:20.3]} 54.
h7 {[%clk 0:00:03.1]} 54... Kg7 {[%clk 0:00:19.4]} 55. Qg3+ {[%clk 0:00:01.5]}
55... Qg5 {[%clk 0:00:19.6]} 0-1

[Event "*** SCC Grand Prix: Titled Tuesday Blitz"]
[Site "Chess.com"]
[Date "2020.08.11"]
[Round "7"]
[White "chargemax23"]
[Black "Zhani-Z"]
[Result "1-0"]
[WhiteElo "2653"]
[BlackElo "2466"]
[TimeControl "180+1"]
[EndTime "11:18:41 PDT"]
[Termination "chargemax23 won on time"]

1. c4 {[%clk 0:03:00.9]} 1... e6 {[%clk 0:02:53]} 2. Nc3 {[%clk 0:02:57.4]} 2...
Nf6 {[%clk 0:02:49.7]} 3. e4 {[%clk 0:02:55.5]} 3... c5 {[%clk 0:02:48.7]} 4.
Nf3 {[%clk 0:02:54.7]} 4... Nc6 {[%clk 0:02:46.9]} 5. a3 {[%clk 0:02:54.1]} 5...
d5 {[%clk 0:02:41.5]} 6. cxd5 {[%clk 0:02:47.2]} 6... exd5 {[%clk 0:02:39.9]} 7.
e5 {[%clk 0:02:44.3]} 7... Nd7 {[%clk 0:02:11.2]} 8. Bb5 {[%clk 0:02:30.1]} 8...
Nb6 {[%clk 0:01:53]} 9. O-O {[%clk 0:02:21.1]} 9... d4 {[%clk 0:01:44.2]} 10.
Ne4 {[%clk 0:02:13]} 10... Be7 {[%clk 0:01:42.5]} 11. h3 {[%clk 0:02:05.3]}
11... O-O {[%clk 0:01:40.7]} 12. d3 {[%clk 0:02:05.1]} 12... Bd7 {[%clk
0:01:16.5]} 13. Bxc6 {[%clk 0:01:24]} 13... Bxc6 {[%clk 0:01:16.1]} 14. Re1
{[%clk 0:01:24.9]} 14... Qd5 {[%clk 0:01:07.6]} 15. b3 {[%clk 0:01:17.1]} 15...
Nd7 {[%clk 0:00:56.9]} 16. Ng3 {[%clk 0:01:11.2]} 16... Rfe8 {[%clk 0:00:53.8]}
17. Bf4 {[%clk 0:01:05.5]} 17... Nf8 {[%clk 0:00:48.1]} 18. Ne4 {[%clk
0:01:00.6]} 18... Ng6 {[%clk 0:00:41.8]} 19. Bg3 {[%clk 0:01:00.3]} 19... Bf8
{[%clk 0:00:30]} 20. Ned2 {[%clk 0:00:51.8]} 20... Re6 {[%clk 0:00:24.1]} 21. a4
{[%clk 0:00:50.1]} 21... Rae8 {[%clk 0:00:23.3]} 22. Nc4 {[%clk 0:00:50.3]}
22... b6 {[%clk 0:00:20.7]} 23. Qd2 {[%clk 0:00:43.4]} 23... h6 {[%clk
0:00:11.6]} 24. Re4 {[%clk 0:00:36.2]} 24... Qd7 {[%clk 0:00:10.7]} 25. Rg4
{[%clk 0:00:35.6]} 25... Qb7 {[%clk 0:00:10.4]} 26. Ne1 {[%clk 0:00:28.6]} 26...
Bd5 {[%clk 0:00:09.6]} 27. f4 {[%clk 0:00:28]} 27... f5 {[%clk 0:00:07.5]} 28.
Rh4 {[%clk 0:00:19.2]} 28... Nxh4 {[%clk 0:00:07]} 29. Bxh4 {[%clk 0:00:19.5]}
29... Rg6 {[%clk 0:00:05.2]} 30. Kh2 {[%clk 0:00:19.4]} 30... Ree6 {[%clk
0:00:05.1]} 31. a5 {[%clk 0:00:17.7]} 31... b5 {[%clk 0:00:04.7]} 32. Na3 {[%clk
0:00:17.3]} 32... Bxb3 {[%clk 0:00:04]} 33. Nac2 {[%clk 0:00:17.3]} 33... Bd5
{[%clk 0:00:03.5]} 34. Qe2 {[%clk 0:00:16.8]} 34... Qc6 {[%clk 0:00:03.6]} 35.
a6 {[%clk 0:00:16.4]} 35... Qd7 {[%clk 0:00:02.2]} 36. Rc1 {[%clk 0:00:15.6]}
36... Qf7 {[%clk 0:00:02.5]} 37. Nf3 {[%clk 0:00:15.1]} 37... c4 {[%clk
0:00:02.9]} 38. Nce1 {[%clk 0:00:14.8]} 38... cxd3 {[%clk 0:00:03.3]} 39. Qxd3
{[%clk 0:00:14.6]} 39... Be4 {[%clk 0:00:03.9]} 40. Qxd4 {[%clk 0:00:14.7]}
40... Rc6 {[%clk 0:00:04.4]} 41. Rd1 {[%clk 0:00:14.2]} 41... Rc4 {[%clk
0:00:04.2]} 42. Qd8 {[%clk 0:00:14]} 42... Ra4 {[%clk 0:00:05]} 43. Rd7 {[%clk
0:00:13.3]} 43... Ra2 {[%clk 0:00:05.6]} 44. Rxf7 {[%clk 0:00:12.7]} 44... Kxf7
{[%clk 0:00:05.9]} 45. Qd7+ {[%clk 0:00:12.4]} 45... Kg8 {[%clk 0:00:05.9]} 46.
e6 {[%clk 0:00:12.6]} 46... Rf6 {[%clk 0:00:06]} 47. e7 {[%clk 0:00:12.6]} 47...
Bxe7 {[%clk 0:00:05.4]} 48. Qxe7 {[%clk 0:00:11.9]} 48... Rg6 {[%clk 0:00:05.9]}
49. Qe8+ {[%clk 0:00:11.4]} 49... Kh7 {[%clk 0:00:06.3]} 50. Qf7 {[%clk
0:00:11.5]} 50... Raxa6 {[%clk 0:00:04.7]} 51. Ne5 {[%clk 0:00:10.8]} 51... Rgd6
{[%clk 0:00:03.2]} 52. N1f3 {[%clk 0:00:10.6]} 52... Ra2 {[%clk 0:00:02.7]} 53.
Qh5 {[%clk 0:00:10.2]} 53... Rdd2 {[%clk 0:00:02.1]} 54. Ng5+ {[%clk 0:00:10.5]}
1-0

[Event "*** SCC Grand Prix: Titled Tuesday Blitz"]
[Site "Chess.com"]
[Date "2020.08.11"]
[Round "7"]
[White "pirulillo"]
[Black "Azoulas1"]
[Result "1-0"]
[WhiteElo "2231"]
[BlackElo "2009"]
[TimeControl "180+1"]
[EndTime "11:18:41 PDT"]
[Termination "pirulillo won on time"]

1. e4 {[%clk 0:02:14.9]} 1... e5 {[%clk 0:02:56.4]} 2. d4 {[%clk 0:02:14.5]}
2... exd4 {[%clk 0:02:52.8]} 3. f4 {[%clk 0:02:15.4]} 3... d5 {[%clk 0:02:50]}
4. e5 {[%clk 0:02:13.7]} 4... c5 {[%clk 0:02:47.1]} 5. Nf3 {[%clk 0:02:14.6]}
5... Bg4 {[%clk 0:02:42.9]} 6. c4 {[%clk 0:02:13.7]} 6... Ne7 {[%clk 0:02:38.5]}
7. h3 {[%clk 0:02:07.4]} 7... Bxf3 {[%clk 0:02:35.5]} 8. Qxf3 {[%clk 0:02:08.3]}
8... g6 {[%clk 0:02:32.5]} 9. Bd3 {[%clk 0:02:01.7]} 9... Bg7 {[%clk 0:02:28.4]}
10. O-O {[%clk 0:02:01.5]} 10... O-O {[%clk 0:02:26.5]} 11. Re1 {[%clk 0:02:01]}
11... Nbc6 {[%clk 0:02:24.8]} 12. a3 {[%clk 0:02:00.5]} 12... a6 {[%clk
0:02:18.7]} 13. Nd2 {[%clk 0:01:59.9]} 13... Qd7 {[%clk 0:02:10.3]} 14. b3
{[%clk 0:02:00]} 14... Rad8 {[%clk 0:02:05.8]} 15. Bb2 {[%clk 0:01:59.7]} 15...
Nf5 {[%clk 0:02:03.1]} 16. g4 {[%clk 0:01:57.2]} 16... Ne3 {[%clk 0:01:59.2]}
17. Nf1 {[%clk 0:01:56.3]} 17... dxc4 {[%clk 0:01:53]} 18. bxc4 {[%clk
0:01:54.1]} 18... Nxf1 {[%clk 0:01:51.1]} 19. Rxf1 {[%clk 0:01:53.3]} 19... Rde8
{[%clk 0:01:44.1]} 20. Be4 {[%clk 0:01:51.9]} 20... Re7 {[%clk 0:01:36.6]} 21.
Bd5 {[%clk 0:01:51.7]} 21... Qc7 {[%clk 0:01:34]} 22. Rae1 {[%clk 0:01:51.4]}
22... h6 {[%clk 0:01:30.6]} 23. Re2 {[%clk 0:01:47.7]} 23... g5 {[%clk
0:01:25.8]} 24. Bc1 {[%clk 0:01:44]} 24... gxf4 {[%clk 0:01:22.1]} 25. Bxf4
{[%clk 0:01:43.2]} 25... Nxe5 {[%clk 0:01:20.3]} 26. Bxe5 {[%clk 0:01:39.4]}
26... Rxe5 {[%clk 0:01:18.3]} 27. Ref2 {[%clk 0:01:35]} 27... Re7 {[%clk
0:01:11.6]} 28. Qf5 {[%clk 0:01:31.9]} 28... b5 {[%clk 0:01:07.6]} 29. Be4
{[%clk 0:01:29.4]} 29... f6 {[%clk 0:01:01.3]} 30. Qh7+ {[%clk 0:01:22]} 30...
Kf7 {[%clk 0:01:00.2]} 31. Rxf6+ {[%clk 0:01:13.1]} 31... Ke8 {[%clk 0:00:54.6]}
32. Rxf8+ {[%clk 0:00:51.6]} 32... Bxf8 {[%clk 0:00:50.4]} 33. Rxf8+ {[%clk
0:00:52.2]} 33... Kxf8 {[%clk 0:00:47.6]} 34. Qh8+ {[%clk 0:00:51.3]} 34... Kf7
{[%clk 0:00:45.5]} 35. Bd5+ {[%clk 0:00:49]} 35... Kg6 {[%clk 0:00:40.3]} 36.
Qg8+ {[%clk 0:00:44.7]} 36... Rg7 {[%clk 0:00:38.7]} 37. Qe6+ {[%clk 0:00:44]}
37... Kg5 {[%clk 0:00:24.6]} 38. Kg2 {[%clk 0:00:41.7]} 38... Qf4 {[%clk
0:00:18.1]} 39. Qe1 {[%clk 0:00:36.2]} 39... Qe3 {[%clk 0:00:16.2]} 40. h4+
{[%clk 0:00:23.5]} 40... Kf4 {[%clk 0:00:13.9]} 41. Qf1+ {[%clk 0:00:21.5]}
41... Ke5 {[%clk 0:00:13.2]} 42. Qf5+ {[%clk 0:00:21]} 42... Kd6 {[%clk
0:00:12.7]} 43. Qf6+ {[%clk 0:00:21.2]} 43... Kc7 {[%clk 0:00:11.5]} 44. Qxg7+
{[%clk 0:00:21.2]} 44... Kb6 {[%clk 0:00:10.9]} 45. Qf6+ {[%clk 0:00:18.2]}
45... Ka5 {[%clk 0:00:09.1]} 46. Qf2 {[%clk 0:00:18.7]} 46... Qxf2+ {[%clk
0:00:06.9]} 47. Kxf2 {[%clk 0:00:18.6]} 47... d3 {[%clk 0:00:05.9]} 48. Ke3
{[%clk 0:00:18.3]} 48... Ka4 {[%clk 0:00:05.4]} 49. Kd2 {[%clk 0:00:19.2]} 49...
Kxa3 {[%clk 0:00:04.7]} 50. g5 {[%clk 0:00:20.1]} 50... hxg5 {[%clk 0:00:02.9]}
51. hxg5 {[%clk 0:00:20.1]} 51... b4 {[%clk 0:00:02.7]} 52. g6 {[%clk
0:00:20.2]} 52... b3 {[%clk 0:00:02.5]} 53. g7 {[%clk 0:00:20.5]} 53... b2
{[%clk 0:00:02.3]} 54. g8=Q {[%clk 0:00:19.3]} 54... b1=Q {[%clk 0:00:01.3]} 55.
Qc8 {[%clk 0:00:15.6]} 55... Qc2+ {[%clk 0:00:02.2]} 56. Ke3 {[%clk 0:00:15.6]}
56... Qe2+ {[%clk 0:00:01.9]} 57. Kf4 {[%clk 0:00:16.2]} 57... Qf2+ {[%clk
0:00:01.8]} 58. Kg5 {[%clk 0:00:16.7]} 58... Qg3+ {[%clk 0:00:01.3]} 59. Kf6
{[%clk 0:00:17.2]} 1-0

[Event "*** SCC Grand Prix: Titled Tuesday Blitz"]
[Site "Chess.com"]
[Date "2020.08.11"]
[Round "7"]
[White "djano"]
[Black "keshka01"]
[Result "1-0"]
[WhiteElo "2426"]
[BlackElo "2568"]
[TimeControl "180+1"]
[EndTime "11:18:42 PDT"]
[Termination "djano won by resignation"]

1. d4 {[%clk 0:03:00.9]} 1... Nf6 {[%clk 0:03:00.2]} 2. Bf4 {[%clk 0:02:59.6]}
2... c5 {[%clk 0:02:59.6]} 3. d5 {[%clk 0:02:58.6]} 3... d6 {[%clk 0:02:59.5]}
4. Nc3 {[%clk 0:02:56.9]} 4... e5 {[%clk 0:02:59.5]} 5. dxe6 {[%clk 0:02:56.3]}
5... Bxe6 {[%clk 0:02:58.8]} 6. e4 {[%clk 0:02:54.9]} 6... Nc6 {[%clk
0:02:55.9]} 7. Nf3 {[%clk 0:02:46.1]} 7... d5 {[%clk 0:02:55]} 8. exd5 {[%clk
0:02:40.1]} 8... Nxd5 {[%clk 0:02:55.9]} 9. Nxd5 {[%clk 0:02:36]} 9... Qxd5
{[%clk 0:02:56.8]} 10. Qxd5 {[%clk 0:02:34.4]} 10... Bxd5 {[%clk 0:02:57.7]} 11.
O-O-O {[%clk 0:02:31]} 11... O-O-O {[%clk 0:02:54.3]} 12. Be2 {[%clk 0:02:19.5]}
12... Be7 {[%clk 0:02:45.5]} 13. a3 {[%clk 0:02:02.2]} 13... Bf6 {[%clk
0:02:38.3]} 14. Rhe1 {[%clk 0:02:01.9]} 14... h6 {[%clk 0:02:34]} 15. Bg3 {[%clk
0:01:55.6]} 15... Rhe8 {[%clk 0:02:27.2]} 16. Bd3 {[%clk 0:01:52.4]} 16... g6
{[%clk 0:01:38.7]} 17. Bf5+ {[%clk 0:01:46.9]} 17... Be6 {[%clk 0:01:17.5]} 18.
Bxe6+ {[%clk 0:01:46.2]} 18... fxe6 {[%clk 0:01:17.8]} 19. Rxd8+ {[%clk
0:01:43.9]} 19... Bxd8 {[%clk 0:01:15.8]} 20. Ne5 {[%clk 0:01:43.2]} 20... Nxe5
{[%clk 0:01:15.4]} 21. Bxe5 {[%clk 0:01:43.1]} 21... b6 {[%clk 0:01:13]} 22. f3
{[%clk 0:01:40.7]} 22... Bc7 {[%clk 0:01:11.8]} 23. Bg3 {[%clk 0:01:35.9]} 23...
Bxg3 {[%clk 0:01:11]} 24. hxg3 {[%clk 0:01:36.8]} 24... h5 {[%clk 0:01:11.4]}
25. Kd2 {[%clk 0:01:26.6]} 25... Kd7 {[%clk 0:01:11.5]} 26. Ke3 {[%clk
0:01:26.4]} 26... Ke7 {[%clk 0:01:11.8]} 27. Rd1 {[%clk 0:01:24]} 27... Rf8
{[%clk 0:01:12]} 28. Ke4 {[%clk 0:01:18]} 28... Rf5 {[%clk 0:01:09.7]} 29. c4
{[%clk 0:01:03.8]} 29... Kf6 {[%clk 0:01:00.1]} 30. Rd7 {[%clk 0:01:00.9]} 30...
Re5+ {[%clk 0:00:59.6]} 31. Kd3 {[%clk 0:00:54.8]} 31... Rg5 {[%clk 0:00:59.6]}
32. Ke3 {[%clk 0:00:47.5]} 32... Rxg3 {[%clk 0:00:39.6]} 33. Kf2 {[%clk
0:00:47.6]} 33... h4 {[%clk 0:00:38.2]} 34. Rxa7 {[%clk 0:00:35]} 34... g5
{[%clk 0:00:38.7]} 35. b4 {[%clk 0:00:33]} 35... cxb4 {[%clk 0:00:37.9]} 36.
axb4 {[%clk 0:00:33.9]} 36... g4 {[%clk 0:00:38.3]} 37. c5 {[%clk 0:00:31.3]}
37... bxc5 {[%clk 0:00:37.4]} 38. bxc5 {[%clk 0:00:30.7]} 38... gxf3 {[%clk
0:00:38.2]} 39. gxf3 {[%clk 0:00:30]} 39... Rg5 {[%clk 0:00:38.7]} 40. Rh7
{[%clk 0:00:27.5]} 40... Rxc5 {[%clk 0:00:38.8]} 41. Rxh4 {[%clk 0:00:27.1]}
41... Kg5 {[%clk 0:00:38.2]} 42. Rg4+ {[%clk 0:00:26.4]} 42... Kf5 {[%clk
0:00:38.3]} 43. Kg3 {[%clk 0:00:26.4]} 43... Rc1 {[%clk 0:00:35.6]} 44. Re4
{[%clk 0:00:26.3]} 44... Rg1+ {[%clk 0:00:34.4]} 45. Kf2 {[%clk 0:00:26.1]}
45... Rg8 {[%clk 0:00:35.3]} 46. Ke3 {[%clk 0:00:25.7]} 46... Ra8 {[%clk
0:00:35]} 47. Kf2 {[%clk 0:00:26.1]} 47... Ra3 {[%clk 0:00:34.7]} 48. Kg3 {[%clk
0:00:26]} 48... e5 {[%clk 0:00:35.2]} 49. Kf2 {[%clk 0:00:25.9]} 49... Ra8
{[%clk 0:00:34.7]} 50. Kg3 {[%clk 0:00:26]} 50... Rd8 {[%clk 0:00:34.7]} 51. Kf2
{[%clk 0:00:26.1]} 51... Rd3 {[%clk 0:00:34.1]} 52. Kg3 {[%clk 0:00:25.8]} 52...
Rd2 {[%clk 0:00:34.6]} 53. Rg4 {[%clk 0:00:25.3]} 53... Re2 {[%clk 0:00:33.4]}
54. Ra4 {[%clk 0:00:24.9]} 54... Re3 {[%clk 0:00:33.8]} 55. Kf2 {[%clk
0:00:24.2]} 55... Rb3 {[%clk 0:00:34.1]} 56. Ra5 {[%clk 0:00:23.8]} 56... Rd3
{[%clk 0:00:31.1]} 57. Ra8 {[%clk 0:00:22.9]} 57... Rb3 {[%clk 0:00:28.3]} 58.
Rf8+ {[%clk 0:00:22.7]} 58... Ke6 {[%clk 0:00:28.5]} 59. Re8+ {[%clk 0:00:22.9]}
59... Kd5 {[%clk 0:00:28.3]} 60. Rd8+ {[%clk 0:00:22.1]} 60... Ke6 {[%clk
0:00:28.7]} 61. Re8+ {[%clk 0:00:22.2]} 61... Kf6 {[%clk 0:00:29.4]} 62. Rf8+
{[%clk 0:00:22.4]} 62... Ke7 {[%clk 0:00:30]} 63. Rh8 {[%clk 0:00:22.3]} 63...
Rb4 {[%clk 0:00:28.3]} 64. Rh6 {[%clk 0:00:22.1]} 64... Kf7 {[%clk 0:00:28.1]}
65. Ke3 {[%clk 0:00:21.3]} 65... Rf4 {[%clk 0:00:28.1]} 66. Ra6 {[%clk 0:00:21]}
66... Ke7 {[%clk 0:00:27.5]} 67. Rb6 {[%clk 0:00:20.5]} 67... Rd4 {[%clk
0:00:26.2]} 68. Ra6 {[%clk 0:00:20.5]} 68... Rc4 {[%clk 0:00:26.3]} 69. Rb6
{[%clk 0:00:20.6]} 69... Rb4 {[%clk 0:00:26.7]} 70. Rxb4 {[%clk 0:00:20.3]} 1-0

[Event "*** SCC Grand Prix: Titled Tuesday Blitz"]
[Site "Chess.com"]
[Date "2020.08.11"]
[Round "7"]
[White "Oleksandr_Bortnyk"]
[Black "Msb2"]
[Result "0-1"]
[WhiteElo "2969"]
[BlackElo "2817"]
[TimeControl "180+1"]
[EndTime "11:18:44 PDT"]
[Termination "Msb2 won by resignation"]

1. e4 {[%clk 0:03:00.9]} 1... e6 {[%clk 0:02:59.4]} 2. d4 {[%clk 0:02:45.8]}
2... d6 {[%clk 0:03:00.3]} 3. Nc3 {[%clk 0:02:41.4]} 3... c5 {[%clk 0:02:48.6]}
4. dxc5 {[%clk 0:02:36.7]} 4... dxc5 {[%clk 0:02:49.5]} 5. Qxd8+ {[%clk
0:02:36.9]} 5... Kxd8 {[%clk 0:02:50]} 6. Bf4 {[%clk 0:02:37.4]} 6... a6 {[%clk
0:02:18.6]} 7. O-O-O+ {[%clk 0:02:38.3]} 7... Nd7 {[%clk 0:02:18.8]} 8. Na4
{[%clk 0:02:32]} 8... b5 {[%clk 0:02:11.5]} 9. Nb6 {[%clk 0:02:28]} 9... Ra7
{[%clk 0:02:11.9]} 10. Nf3 {[%clk 0:02:17.6]} 10... f6 {[%clk 0:02:01.9]} 11. e5
{[%clk 0:02:12.4]} 11... Rb7 {[%clk 0:01:55]} 12. Nxc8 {[%clk 0:01:58.5]} 12...
Kxc8 {[%clk 0:01:55.9]} 13. exf6 {[%clk 0:01:58.8]} 13... gxf6 {[%clk
0:01:56.6]} 14. g3 {[%clk 0:01:56.2]} 14... Bh6 {[%clk 0:01:42.8]} 15. Bxh6
{[%clk 0:01:44.4]} 15... Nxh6 {[%clk 0:01:43.7]} 16. Bh3 {[%clk 0:01:44.9]}
16... Rb6 {[%clk 0:01:42.4]} 17. Rhe1 {[%clk 0:01:29.1]} 17... Re8 {[%clk
0:01:40.1]} 18. Re4 {[%clk 0:01:28.7]} 18... Nf7 {[%clk 0:01:18.5]} 19. Rde1
{[%clk 0:01:19.3]} 19... Nd8 {[%clk 0:01:09.9]} 20. b3 {[%clk 0:01:02.6]} 20...
Kc7 {[%clk 0:01:10]} 21. Kb2 {[%clk 0:01:02.7]} 21... Re7 {[%clk 0:01:09.7]} 22.
a4 {[%clk 0:01:03]} 22... Nf8 {[%clk 0:01:00.1]} 23. axb5 {[%clk 0:00:57.5]}
23... axb5 {[%clk 0:01:01]} 24. Ra1 {[%clk 0:00:45.5]} 24... Rd7 {[%clk
0:00:51.2]} 25. Ne1 {[%clk 0:00:45.2]} 25... Nb7 {[%clk 0:00:40.7]} 26. Nd3
{[%clk 0:00:38.7]} 26... c4 {[%clk 0:00:33.2]} 27. Nb4 {[%clk 0:00:35.8]} 27...
Nc5 {[%clk 0:00:28.5]} 28. Re2 {[%clk 0:00:28.7]} 28... cxb3 {[%clk 0:00:19.7]}
29. cxb3 {[%clk 0:00:29.6]} 29... Nd3+ {[%clk 0:00:18.9]} 30. Nxd3 {[%clk
0:00:27.1]} 30... Rxd3 {[%clk 0:00:19.8]} 31. Bg2 {[%clk 0:00:26.8]} 31... Kd6
{[%clk 0:00:12.8]} 32. Be4 {[%clk 0:00:18.9]} 32... Rd4 {[%clk 0:00:10.8]} 33.
Ra8 {[%clk 0:00:19.2]} 33... Nd7 {[%clk 0:00:05.9]} 34. Bxh7 {[%clk 0:00:19.5]}
34... f5 {[%clk 0:00:05.8]} 35. Bg8 {[%clk 0:00:19.4]} 35... e5 {[%clk
0:00:03.1]} 36. Rc8 {[%clk 0:00:14.8]} 36... Nf6 {[%clk 0:00:01.8]} 37. Rd8+
{[%clk 0:00:06.3]} 37... Kc7 {[%clk 0:00:02]} 38. Rf8 {[%clk 0:00:05.4]} 38...
Nxg8 {[%clk 0:00:01.9]} 39. Rxg8 {[%clk 0:00:05.7]} 39... e4 {[%clk 0:00:02.7]}
40. Rf8 {[%clk 0:00:05.5]} 40... Rc6 {[%clk 0:00:02.8]} 41. Rxf5 {[%clk
0:00:05.3]} 41... b4 {[%clk 0:00:02.8]} 42. Re5 {[%clk 0:00:04.7]} 42... Rc3
{[%clk 0:00:03.3]} 43. R5xe4 {[%clk 0:00:04.9]} 43... Rdd3 {[%clk 0:00:04.1]}
44. Rxb4 {[%clk 0:00:05]} 44... Rf3 {[%clk 0:00:05]} 45. Rc4+ {[%clk 0:00:04.9]}
45... Rxc4 {[%clk 0:00:05.9]} 46. bxc4 {[%clk 0:00:05.8]} 46... Kc6 {[%clk
0:00:06.6]} 47. Rc2 {[%clk 0:00:05.9]} 47... Kc5 {[%clk 0:00:07.5]} 48. Kc1
{[%clk 0:00:06.5]} 48... Rf7 {[%clk 0:00:08]} 49. Kd1 {[%clk 0:00:06.8]} 49...
Rd7+ {[%clk 0:00:08.9]} 50. Ke2 {[%clk 0:00:07.1]} 50... Re7+ {[%clk 0:00:09.8]}
51. Kf3 {[%clk 0:00:07.5]} 51... Rf7+ {[%clk 0:00:10.7]} 52. Kg2 {[%clk
0:00:08]} 52... Kd4 {[%clk 0:00:11.6]} 53. h4 {[%clk 0:00:08.5]} 53... Rc7
{[%clk 0:00:12.2]} 54. c5 {[%clk 0:00:08.6]} 54... Kd3 {[%clk 0:00:13.1]} 55.
Ra2 {[%clk 0:00:08.9]} 55... Rxc5 {[%clk 0:00:13]} 56. Ra5 {[%clk 0:00:09.3]}
56... Rxa5 {[%clk 0:00:12.8]} 57. g4 {[%clk 0:00:07.9]} 57... Ke4 {[%clk
0:00:13.7]} 58. Kg3 {[%clk 0:00:07.8]} 58... Ra3+ {[%clk 0:00:13.9]} 59. Kg2
{[%clk 0:00:08.3]} 59... Kf4 {[%clk 0:00:14.4]} 60. g5 {[%clk 0:00:08.8]} 60...
Kg4 {[%clk 0:00:14.8]} 61. g6 {[%clk 0:00:08.6]} 61... Kxh4 {[%clk 0:00:15.4]}
62. f4 {[%clk 0:00:08.1]} 62... Kg4 {[%clk 0:00:14.5]} 63. g7 {[%clk 0:00:04.8]}
63... Ra2+ {[%clk 0:00:14.9]} 64. Kf1 {[%clk 0:00:04.9]} 64... Ra8 {[%clk
0:00:15.8]} 65. Ke2 {[%clk 0:00:05.4]} 65... Kxf4 {[%clk 0:00:15.9]} 66. Kd3
{[%clk 0:00:05.5]} 66... Rg8 {[%clk 0:00:16.6]} 67. Kd4 {[%clk 0:00:05.9]} 67...
Rxg7 {[%clk 0:00:17.5]} 68. Kd5 {[%clk 0:00:06.2]} 68... Rg5+ {[%clk 0:00:18.2]}
69. Ke6 {[%clk 0:00:06.5]} 69... Re5+ {[%clk 0:00:19.1]} 0-1